bitfinex/quotes_SOLUSD_20250401
["timestamp","ask_amount","ask_price","bid_price","bid_amount"]
[1743470338570,26.957872,124.63,124.58,0.063]
[1743470338872,26.957872,124.63,124.59,7.76]
[1743470339773,0.28432314,124.63,124.59,7.76]
[1743470340772,0.28432314,124.63,124.59,15.7858]
[1743470348255,0.03,124.64,124.59,35.8516]
[1743470348652,0.03,124.64,124.59,7.76]
[1743470348858,18.933972,124.63,124.59,7.76]
[1743470349558,23.04786992,124.63,124.59,7.76]
[1743470350682,8.0243,124.62,124.59,7.76]
[1743470351353,18.933972,124.61,124.58,0.063]
[1743470352483,25.43894558,124.61,124.58,0.063]
[1743470353058,18.933972,124.61,124.58,7.803]
[1743470353486,18.933972,124.62,124.58,7.803]
[1743470354980,26.958372,124.62,124.58,7.803]
[1743470355389,18.933972,124.62,124.58,7.803]
[1743470355962,18.933972,124.62,124.58,15.8299]
[1743470365088,0.28432314,124.62,124.58,15.8299]
[1743470365295,0.28432314,124.62,124.58,37.4287]
[1743470365477,0.28432314,124.62,124.58,43.8931]
[1743470368083,18.933972,124.63,124.58,7.803]
[1743470368280,26.958072,124.63,124.58,7.803]
[1743470368588,108.258072,124.63,124.58,7.803]
[1743470368792,108.258072,124.63,124.58,15.8298]
[1743470372224,108.258072,124.63,124.58,7.803]
[1743470373602,108.258072,124.63,124.58,15.8299]
[1743470374103,108.258072,124.63,124.58,0.063]
[1743470374104,139.45559576,124.63,124.58,0.063]
[1743470374323,18.933972,124.59,124.58,0.063]
[1743470374991,0.28432314,124.61,124.58,0.063]
[1743470375192,18.933972,124.59,124.58,0.063]
[1743470377608,26.960272,124.59,124.58,0.063]
[1743470378406,38.87978853,124.59,124.58,0.063]
[1743470378808,18.933972,124.6,124.58,0.063]
[1743470380606,26.959672,124.6,124.58,0.063]
[1743470381195,38.09789576,124.6,124.58,0.063]
[1743470381413,50.01741229,124.6,124.58,0.063]
[1743470382707,18.933972,124.58,124.56,0.063]
[1743470382912,0.28432314,124.56,124.52,0.063]
[1743470383213,18.64964886,124.55,124.52,0.063]
[1743470383708,0.28432314,124.53,124.52,0.063]
[1743470384289,0.28432314,124.54,124.52,0.063]
[1743470384919,18.933972,124.53,124.52,0.063]
[1743470385502,100.233972,124.53,124.52,0.063]
[1743470385809,108.264072,124.53,124.52,0.063]
[1743470386022,108.264072,124.53,124.51,0.063]
[1743470386023,18.933972,124.52,124.51,0.063]
[1743470387816,23.02737461,124.52,124.51,0.063]
[1743470388008,31.05817461,124.52,124.51,0.063]
[1743470388194,42.19639837,124.52,124.48,0.063]
[1743470388395,18.933972,124.5,124.48,0.063]
[1743470388794,0.28432314,124.5,124.48,0.063]
[1743470388994,18.933972,124.5,124.48,0.063]
[1743470389618,0.28432314,124.5,124.48,0.063]
[1743470391215,18.933972,124.5,124.48,0.063]
[1743470391413,26.966072,124.5,124.48,0.063]
[1743470394812,31.43099013,124.5,124.48,0.063]
[1743470394997,50.02381229,124.5,124.48,0.063]
[1743470395200,0.28432314,124.48,124.47,0.063]
[1743470395407,81.58432314,124.48,124.47,0.063]
[1743470395609,18.933972,124.48,124.45,0.063]
[1743470395807,41.99171229,124.48,124.45,0.063]
[1743470396701,18.933972,124.46,124.45,0.063]
[1743470398815,25.26282051,124.46,124.45,0.063]
[1743470399324,33.29752051,124.46,124.45,0.063]
[1743470399518,25.26282051,124.46,124.45,0.063]
[1743470400526,6.61317165,124.46,124.45,0.063]
[1743470400742,6.61317165,124.46,124.44,0.063]
[1743470400743,100.233972,124.45,124.44,0.063]
[1743470400931,0.28432314,124.44,124.42,7.74]
[1743470401317,0.28432314,124.44,124.41,1.5689]
[1743470402003,18.933972,124.42,124.36,1.609]
[1743470402305,35.80335728,124.42,124.36,1.609]
[1743470402516,0.28432314,124.4,124.36,9.349]
[1743470402724,0.28432314,124.4,124.35,6.1838]
[1743470402725,0.28432314,124.38,124.35,0.063]
[1743470402909,18.933972,124.38,124.35,0.063]
[1743470404305,8.0405,124.37,124.35,0.063]
[1743470406325,108.275072,124.36,124.35,0.063]
[1743470408125,100.233972,124.36,124.35,0.063]
[1743470408936,108.275072,124.36,124.35,0.063]
[1743470412034,120.19458853,124.36,124.35,0.063]
[1743470412542,0.28432314,124.36,124.35,0.063]
[1743470414040,0.28432314,124.38,124.35,0.063]
[1743470414240,18.64964886,124.37,124.35,0.063]
[1743470414423,0.28432314,124.36,124.35,0.063]
[1743470415226,18.933972,124.39,124.35,0.063]
[1743470415626,0.28432314,124.39,124.35,0.063]
[1743470415826,0.28432314,124.4,124.35,0.063]
[1743470416050,18.64964886,124.39,124.35,0.063]
[1743470416439,0.28432314,124.38,124.35,0.063]
[1743470417218,0.14216157,124.41,124.36,7.74]
[1743470417437,0.28432314,124.41,124.37,1.6233]
[1743470417646,0.063,124.44,124.41,1.5779]
[1743470417828,0.063,124.44,124.42,7.74]
[1743470418031,0.063,124.44,124.42,15.7769]
[1743470419435,0.063,124.44,124.42,7.74]
[1743470420548,0.063,124.44,124.41,1.5779]
[1743470420849,0.063,124.44,124.42,7.74]
[1743470424638,0.063,124.44,124.42,15.7772]
[1743470426947,0.063,124.44,124.42,7.74]
[1743470427242,0.063,124.44,124.42,15.7771]
[1743470427431,0.063,124.44,124.42,7.74]
[1743470428830,0.063,124.44,124.41,9.6155]
[1743470429032,0.063,124.44,124.41,1.5779]
[1743470432950,0.34732314,124.44,124.41,1.5779]
[1743470435146,0.063,124.44,124.41,9.6158]
[1743470435451,0.063,124.44,124.43,20.0]
[1743470436971,0.31432314,124.52,124.44,48.126]
[1743470437139,0.31432314,124.52,124.48,20.0]
[1743470437458,0.03,124.52,124.48,20.0]
[1743470437862,0.03,124.52,124.49,1.6418]
[1743470438056,0.03,124.52,124.5,7.74]
[1743470438569,0.28432314,124.51,124.5,7.74]
[1743470438859,18.933972,124.51,124.47,7.74]
[1743470439156,0.28432314,124.49,124.47,7.74]
[1743470439661,0.28432314,124.49,124.44,7.72]
[1743470440155,0.28432314,124.47,124.44,7.72]
[1743470442487,8.0347,124.46,124.44,7.72]
[1743470448467,8.0347,124.46,124.41,7.72]
[1743470448468,0.28432314,124.45,124.41,7.72]
[1743470450172,8.036,124.44,124.41,7.72]
[1743470450463,8.31982314,124.45,124.41,7.72]
[1743470451970,8.31982314,124.45,124.4,14.649]
[1743470453072,8.31982314,124.45,124.4,6.6105]
[1743470453257,18.64964886,124.44,124.4,0.03]
[1743470454164,0.14216157,124.42,124.4,0.03]
[1743470454365,0.28432314,124.42,124.4,0.03]
[1743470455378,26.970072,124.44,124.4,0.03]
[1743470462158,11.13852063,124.47,124.4,0.03]
[1743470462159,18.64964886,124.47,124.4,0.03]
[1743470462358,18.933972,124.48,124.42,26.5322]
[1743470462582,0.28432314,124.48,124.42,34.2522]
[1743470463469,18.933972,124.48,124.42,34.2522]
[1743470463674,18.933972,124.48,124.42,14.2522]
[1743470464166,18.933972,124.46,124.4,0.03]
[1743470464371,18.933972,124.46,124.4,8.0684]
[1743470466384,26.969272,124.46,124.4,8.0684]
[1743470467078,26.969272,124.46,124.4,0.03]
[1743470467079,47.055972,124.46,124.4,0.03]
[1743470468787,0.28432314,124.46,124.4,0.03]
[1743470469393,81.3,124.47,124.42,20.0]
[1743470470296,0.28432314,124.46,124.43,8.0366]
[1743470470595,0.28432314,124.46,124.4,8.0683]
[1743470471387,18.933972,124.46,124.4,8.0683]
[1743470471586,18.933972,124.46,124.4,0.03]
[1743470471884,0.28432314,124.46,124.4,8.0685]
[1743470472271,8.31912314,124.46,124.4,8.0685]
[1743470473894,26.968772,124.46,124.4,8.0685]
[1743470476389,0.28432314,124.46,124.4,28.1649]
[1743470477280,0.34732314,124.46,124.4,28.1649]
[1743470479195,0.063,124.46,124.43,20.0]
[1743470480195,0.063,124.46,124.4,8.0685]
[1743470480399,33.145572,124.46,124.4,0.03]
[1743470480570,18.933972,124.44,124.4,0.03]
[1743470480775,0.28432314,124.4,124.35,0.063]
[1743470482872,18.933972,124.38,124.35,0.063]
[1743470485295,26.973872,124.38,124.35,0.063]
[1743470486495,0.28432314,124.38,124.35,0.063]
[1743470486683,0.28432314,124.4,124.35,0.063]
[1743470488704,0.14216157,124.38,124.35,0.063]
[1743470489301,18.933972,124.41,124.35,0.063]
[1743470489600,0.28432314,124.41,124.35,0.063]
[1743470489799,14.496,124.44,124.38,1.6013]
[1743470489800,0.28432314,124.44,124.38,1.6013]
[1743470490006,0.28432314,124.44,124.39,7.72]
[1743470490204,18.933972,124.44,124.39,7.72]
[1743470490878,26.970172,124.44,124.39,7.72]
[1743470491143,26.970172,124.44,124.36,15.7608]
[1743470491399,26.970172,124.44,124.36,7.72]
[1743470491400,47.060172,124.44,124.36,7.72]
[1743470491596,18.933972,124.42,124.35,7.783]
[1743470491789,18.933972,124.42,124.35,0.063]
[1743470492191,18.933972,124.4,124.35,0.063]
[1743470493203,18.933972,124.38,124.35,0.063]
[1743470495303,8.32412314,124.38,124.35,0.063]
[1743470496992,40.36224886,124.4,124.35,0.063]
[1743470496993,0.28432314,124.39,124.35,0.063]
[1743470499289,18.933972,124.44,124.36,26.5961]
[1743470499506,18.933972,124.44,124.37,7.72]
[1743470500215,18.996972,124.44,124.37,7.72]
[1743470500794,18.996972,124.44,124.38,8.0398]
[1743470500997,27.032972,124.44,124.38,8.0398]
[1743470503924,18.996972,124.44,124.38,8.0398]
[1743470504107,0.34732314,124.44,124.38,8.0398]
[1743470504535,0.34732314,124.44,124.38,28.1394]
[1743470506318,8.38332314,124.44,124.38,28.1394]
[1743470506504,27.032972,124.44,124.38,8.0398]
[1743470507705,0.28432314,124.42,124.36,6.5961]
[1743470508110,0.28432314,124.42,124.36,14.2961]
[1743470508421,0.28432314,124.41,124.36,6.5961]
[1743470508628,0.28432314,124.41,124.35,9.3362]
[1743470508825,18.933972,124.41,124.35,17.3778]
[1743470509221,26.972172,124.41,124.35,17.3778]
[1743470515036,81.3,124.42,124.35,17.3778]
[1743470515037,0.14216157,124.43,124.35,17.3778]
[1743470515336,0.063,124.44,124.39,6.1002]
[1743470515506,0.063,124.44,124.4,9.2694]
[1743470517141,0.063,124.44,124.41,28.1327]
[1743470519728,0.063,124.44,124.41,8.0379]
[1743470520807,0.063,124.44,124.43,20.0]
[1743470521620,0.063,124.44,124.43,28.0366]
[1743470522528,0.063,124.44,124.42,8.037]
[1743470524017,0.063,124.44,124.41,8.0379]
[1743470525505,0.063,124.44,124.4,9.6077]
[1743470525923,0.063,124.44,124.4,17.3077]
[1743470527335,0.28432314,124.43,124.4,15.7383]
[1743470528050,8.099,124.44,124.4,15.7383]
[1743470528051,0.063,124.44,124.4,15.7383]
[1743470529719,0.063,124.44,124.4,35.8347]
[1743470530616,0.063,124.44,124.43,28.0366]
[1743470532627,0.063,124.44,124.43,8.0366]
[1743470533837,0.063,124.44,124.42,8.0372]
[1743470534529,0.0001,124.44,124.42,8.0372]
[1743470535034,0.0001,124.44,124.43,24.96994886]
[1743470535234,0.063,124.51,124.46,20.0]
[1743470535440,0.063,124.51,124.47,7.7]
[1743470536041,0.063,124.51,124.48,8.0334]
[1743470536829,0.063,124.51,124.47,7.7]
[1743470538236,0.34732314,124.51,124.47,7.7]
[1743470539441,8.0321,124.5,124.47,7.7]
[1743470539737,0.063,124.51,124.47,7.7]
[1743470540547,0.28432314,124.5,124.47,7.7]
[1743470541526,8.0321,124.5,124.47,7.7]
[1743470542044,8.0321,124.5,124.46,28.0346]
[1743470542350,8.0321,124.5,124.46,27.7]
[1743470544245,0.28432314,124.49,124.43,6.3203]
[1743470544453,0.28432314,124.49,124.41,1.6223]
[1743470544748,18.933972,124.49,124.42,7.7]
[1743470545847,8.0334,124.48,124.42,15.7372]
[1743470546264,26.68244886,124.49,124.42,15.7372]
[1743470546544,0.063,124.51,124.42,15.7372]
[1743470546751,0.34732314,124.51,124.45,20.0]
[1743470547326,0.34732314,124.51,124.45,26.2761]
[1743470547931,0.34732314,124.51,124.46,8.0347]
[1743470548129,0.34732314,124.51,124.47,7.7]
[1743470549851,0.34732314,124.51,124.47,15.7337]
[1743470559535,0.063,124.51,124.47,15.7337]
[1743470560244,0.063,124.51,124.47,35.8188]
[1743470567755,0.063,124.51,124.5,20.0]
[1743470568160,0.063,124.51,124.5,26.2863]
[1743470569864,0.063,124.51,124.5,34.3184]
[1743470571773,0.063,124.51,124.5,28.0321]
[1743470573957,0.063,124.51,124.5,20.0]
[1743470574972,0.063,124.51,124.5,28.0321]
[1743470578477,0.063,124.51,124.5,35.7121]
[1743470592887,0.063,124.51,124.5,27.68]
[1743470595485,0.063,124.51,124.5,7.68]
[1743470599797,0.063,124.51,124.47,26.3095]
[1743470599979,0.063,124.51,124.48,7.66]
[1743470600893,0.34732314,124.51,124.47,8.034]
[1743470601195,0.34732314,124.51,124.48,7.66]
[1743470601976,8.37872314,124.51,124.47,8.034]
[1743470602389,8.37872314,124.51,124.47,15.694]
[1743470605108,0.34732314,124.51,124.47,15.694]
[1743470605415,0.063,124.51,124.47,35.7791]
[1743470605707,0.063,124.51,124.48,7.66]
[1743470606988,0.063,124.51,124.5,20.0]
[1743470607493,0.063,124.51,124.5,28.0321]
[1743470611510,0.063,124.51,124.49,8.0327]
[1743470620527,0.063,124.51,124.48,8.0332]
[1743470620813,0.063,124.51,124.49,7.66]
[1743470622814,0.063,124.51,124.47,8.0337]
[1743470623121,0.063,124.51,124.48,7.66]
[1743470623512,0.063,124.51,124.46,0.03]
[1743470623690,0.063,124.51,124.47,7.66]
[1743470624212,0.063,124.51,124.47,15.6939]
[1743470625608,0.063,124.51,124.47,7.66]
[1743470627118,0.063,124.51,124.47,15.694]
[1743470637907,0.063,124.51,124.47,17.2766]
[1743470638202,0.063,124.51,124.47,37.3617]
[1743470639409,0.063,124.51,124.47,17.2766]
[1743470639726,0.14216157,124.46,124.38,0.03]
[1743470640131,13.60264982,124.46,124.38,0.03]
[1743470640517,13.60264982,124.46,124.38,8.0696]
[1743470640712,0.14216157,124.44,124.39,7.66]
[1743470644552,13.46048825,124.45,124.39,15.6991]
[1743470644834,4.09684367,124.47,124.42,20.0]
[1743470644835,4.38116681,124.47,124.42,20.0]
[1743470645009,4.09684367,124.47,124.43,20.0]
[1743470645220,4.09684367,124.47,124.44,7.66]
[1743470645420,0.28432314,124.49,124.44,7.66]
[1743470647237,0.28432314,124.49,124.45,8.0353]
[1743470648208,0.28432314,124.49,124.44,7.66]
[1743470648523,4.22389156,124.49,124.43,7.66]
[1743470648712,0.28432314,124.49,124.43,7.66]
[1743470648913,0.28432314,124.49,124.41,9.6957]
[1743470649125,81.58432314,124.49,124.44,7.66]
[1743470650113,18.64964886,124.48,124.44,7.66]
[1743470651440,18.64964886,124.48,124.44,15.6959]
[1743470656937,0.28432314,124.47,124.44,7.66]
[1743470657241,0.28432314,124.47,124.42,7.66]
[1743470658745,8.31842314,124.47,124.41,7.64]
[1743470658936,89.61842314,124.47,124.41,7.64]
[1743470659142,89.61842314,124.47,124.41,15.6774]
[1743470659331,81.58432314,124.47,124.41,15.6774]
[1743470659943,18.64964886,124.46,124.41,35.7722]
[1743470666240,0.28432314,124.46,124.41,35.7722]
[1743470669234,0.28432314,124.47,124.41,15.6774]
[1743470670656,8.0347,124.46,124.41,15.6774]
[1743470671332,18.933972,124.45,124.41,15.6774]
[1743470675855,81.363,124.48,124.41,15.6774]
[1743470676051,18.933972,124.47,124.41,15.6774]
[1743470677445,26.967972,124.47,124.41,15.6774]
[1743470677644,26.967972,124.47,124.41,15.7074]
[1743470677847,0.063,124.46,124.41,15.7074]
[1743470683062,0.063,124.46,124.41,35.8022]
[1743470684875,0.063,124.46,124.41,15.7074]
[1743470685244,0.063,124.46,124.41,7.67]
[1743470685849,0.34732314,124.46,124.41,7.67]
[1743470686668,0.28432314,124.44,124.41,7.67]
[1743470688466,0.28432314,124.44,124.41,15.7079]
[1743470692564,0.28432314,124.44,124.41,8.0679]
[1743470692769,0.28432314,124.44,124.41,15.7079]
[1743470693669,0.063,124.46,124.41,35.8027]
[1743470693848,0.34732314,124.46,124.42,1.5747]
[1743470694971,0.34732314,124.46,124.43,8.0366]
[1743470700276,0.063,124.46,124.43,28.1282]
[1743470702370,0.063,124.46,124.43,8.0366]
[1743470708368,0.063,124.46,124.44,7.64]
[1743470710195,0.063,124.46,124.44,15.6758]
[1743470715785,0.063,124.46,124.45,7.8703]
[1743470716177,0.063,124.48,124.47,20.0]
[1743470716382,0.063,124.49,124.48,20.0]
[1743470716785,0.063,124.49,124.48,28.0334]
[1743470722499,0.063,124.49,124.48,35.6534]
[1743470723288,0.063,124.49,124.48,35.4534]
[1743470724294,0.063,124.49,124.48,35.5164]
[1743470731393,0.063,124.51,124.48,55.5999]
[1743470731601,0.063,124.51,124.49,8.1754]
[1743470733289,0.063,124.51,124.5,8.0321]
[1743470734500,0.0001,124.52,124.5,8.0321]
[1743470737701,0.0001,124.52,124.51,7.62]
[1743470738379,0.0001,124.52,124.51,34.30104886]
[1743470746305,0.0001,124.52,124.51,34.44321043]
[1743470746491,0.0001,124.52,124.51,34.585372]
[1743470747187,0.0001,124.52,124.51,35.085372]
[1743470747402,0.0001,124.52,124.51,36.652872]
[1743470747799,0.063,124.59,124.51,167.686872]
[1743470748004,0.063,124.59,124.55,20.0]
[1743470748199,0.063,124.59,124.58,20.0]
[1743470748400,0.063,124.59,124.58,28.0269]
[1743470749711,0.063,124.61,124.58,48.0943]
[1743470754216,0.063,124.61,124.58,28.0269]
[1743470754714,0.063,124.61,124.57,8.0273]
[1743470755017,0.063,124.61,124.58,7.6]
[1743470756722,0.063,124.61,124.58,15.6269]
[1743470757110,0.063,124.61,124.6,20.0]
[1743470758724,0.063,124.61,124.6,28.0256]
[1743470759914,0.063,124.61,124.6,20.0]
[1743470760420,0.063,124.61,124.6,28.0256]
[1743470764711,0.03,124.64,124.6,28.0256]
[1743470764909,0.03,124.64,124.62,20.0]
[1743470765220,0.03,124.64,124.63,7.6]
[1743470765419,0.063,124.65,124.63,7.6]
[1743470766329,0.0001,124.69,124.67,20.0]
[1743470766515,0.0001,124.69,124.68,7.6]
[1743470768430,0.0001,124.69,124.66,7.6]
[1743470769432,0.28432314,124.68,124.66,7.6]
[1743470772733,7.8483,124.69,124.66,7.6]
[1743470773223,15.8684,124.69,124.66,7.6]
[1743470773734,0.28432314,124.68,124.66,7.6]
[1743470775535,8.30482314,124.68,124.66,7.6]
[1743470775734,0.28432314,124.68,124.66,7.6]
[1743470779134,0.0001,124.69,124.66,7.6]
[1743470779442,0.0001,124.69,124.64,6.1834]
[1743470779941,0.0001,124.69,124.65,7.58]
[1743470783949,0.28442314,124.69,124.65,15.6024]
[1743470784134,18.934072,124.69,124.61,20.0617]
[1743470784441,18.934072,124.69,124.62,15.6039]
[1743470784641,0.28432314,124.67,124.62,15.6039]
[1743470785140,0.0001,124.69,124.62,35.6648]
[1743470786430,0.0001,124.69,124.65,20.0]
[1743470787943,18.64974886,124.69,124.62,7.58]
[1743470788445,0.28432314,124.68,124.63,7.58]
[1743470789424,8.30532314,124.68,124.63,15.6035]
[1743470790445,8.30532314,124.68,124.63,7.58]
[1743470791241,9.89232314,124.68,124.63,7.58]
[1743470791644,9.89232314,124.68,124.63,15.6035]
[1743470795253,9.89232314,124.68,124.63,7.58]
[1743470795941,9.89232314,124.68,124.63,15.6036]
[1743470796337,9.89232314,124.68,124.63,15.6666]
[1743470796743,9.92232314,124.68,124.63,15.6666]
[1743470796945,0.03,124.68,124.63,15.6666]
[1743470797453,0.03,124.68,124.63,35.7259]
[1743470797653,0.03,124.68,124.66,20.0]
[1743470797847,0.03,124.68,124.67,20.0]
[1743470798889,0.03,124.68,124.67,28.0211]
[1743470799452,0.03,124.68,124.66,8.0217]
[1743470799654,0.03,124.68,124.63,7.643]
[1743470802858,0.03,124.68,124.64,8.0231]
[1743470804749,0.03,124.68,124.63,7.643]
[1743470804950,18.963972,124.68,124.63,0.063]
[1743470805262,18.933972,124.64,124.57,17.2239]
[1743470805445,18.933972,124.64,124.57,9.1966]
[1743470806351,7.61,124.68,124.59,8.0892]
[1743470806352,0.14216157,124.66,124.59,8.0892]
[1743470806546,0.31432314,124.68,124.62,20.0]
[1743470806741,0.31432314,124.68,124.64,8.0231]
[1743470807141,0.03,124.68,124.64,8.0231]
[1743470809258,0.03,124.68,124.64,28.0808]
[1743470810264,0.03,124.68,124.64,8.0231]
[1743470812374,0.03,124.68,124.64,28.0808]
[1743470821768,0.03,124.68,124.64,8.0231]
[1743470822068,0.03,124.68,124.64,15.6031]
[1743470831867,0.03,124.68,124.64,7.58]
[1743470832070,18.963972,124.68,124.63,0.063]
[1743470832566,20.560772,124.68,124.63,0.063]
[1743470833978,0.28432314,124.66,124.63,0.063]
[1743470834960,0.28432314,124.64,124.63,0.063]
[1743470837084,26.957072,124.64,124.63,0.063]
[1743470838663,18.933972,124.64,124.63,0.063]
[1743470839185,26.957072,124.64,124.63,0.063]
[1743470842085,18.933972,124.64,124.63,0.063]
[1743470842781,26.957072,124.64,124.63,0.063]
[1743470842970,8.30742314,124.64,124.63,0.063]
[1743470843177,0.28432314,124.65,124.63,0.063]
[1743470843377,10.55198237,124.68,124.63,0.063]
[1743470843587,0.03,124.68,124.63,20.063]
[1743470843903,0.03,124.68,124.63,26.6408]
[1743470844069,0.03,124.68,124.64,1.655]
[1743470844275,0.03,124.68,124.67,20.0]
[1743470845391,0.03,124.68,124.67,28.0211]
[1743470849795,0.03,124.68,124.67,35.5811]
[1743470850090,0.03,124.68,124.67,27.56]
[1743470851195,0.03,124.68,124.67,7.56]
[1743470851378,0.03,124.68,124.64,1.655]
[1743470851578,0.03,124.68,124.65,7.56]
[1743470853614,0.03,124.68,124.66,8.0218]
[1743470857178,0.0001,124.69,124.66,8.0218]
[1743470857179,0.0001,124.69,124.68,20.0]
[1743470858492,0.0001,124.69,124.68,28.0205]
[1743470859583,0.0001,124.69,124.68,7.56]
[1743470862707,0.0001,124.69,124.68,15.5805]
[1743470863928,0.0001,124.69,124.64,21.7124]
[1743470864116,0.0001,124.69,124.65,7.56]
[1743470864601,0.0001,124.69,124.66,7.56]
[1743470865508,0.0001,124.69,124.66,15.5816]
[1743470870212,0.0001,124.69,124.66,7.56]
[1743470872116,0.0001,124.69,124.66,15.5813]
[1743470872912,0.0001,124.69,124.66,8.0213]
[1743470873119,0.0001,124.69,124.66,15.5813]
[1743470875844,0.0001,124.69,124.66,35.6358]
[1743470877200,0.0001,124.69,124.66,15.5813]
[1743470886025,0.0001,124.69,124.65,8.0221]
[1743470886329,0.0001,124.69,124.67,7.56]
[1743470887511,0.0001,124.69,124.68,8.0205]
[1743470888205,0.0001,124.69,124.68,9.582]
[1743470890007,2.9541699,124.76,124.72,20.0]
[1743470890207,2.9541699,124.76,124.73,27.56]
[1743470891729,2.9541699,124.76,124.74,8.0166]
[1743470891912,2.9541699,124.76,124.74,14.2716]
[1743470893230,2.9541699,124.76,124.74,8.0166]
[1743470893413,2.9541699,124.76,124.75,7.54]
[1743470900024,3.09633147,124.76,124.75,7.54]
[1743470900544,21.8881419,124.76,124.75,7.54]
[1743470901137,2.9541699,124.76,124.75,15.556]
[1743470901325,6.99e-05,124.76,124.75,15.556]
[1743470901738,0.03,124.77,124.75,22.0113]
[1743470901739,6.99e-05,124.77,124.75,22.0113]
[1743470915346,6.99e-05,124.77,124.75,8.079]
[1743470915654,6.99e-05,124.77,124.76,7.54]
[1743470919358,6.99e-05,124.77,124.76,15.5553]
[1743470921545,1.521,124.86,124.8,20.0]
[1743470921738,1.521,124.86,124.81,7.54]
[1743470921939,0.14216157,124.87,124.82,7.54]
[1743470922660,18.79181043,124.88,124.82,7.54]
[1743470922661,0.14216157,124.88,124.82,7.54]
[1743470922859,1.5972,124.89,124.85,20.0]
[1743470923044,6.6538,124.9,124.85,20.0]
[1743470923250,0.28432314,124.91,124.85,20.0]
[1743470923454,18.933972,124.91,124.86,8.0089]
[1743470923642,18.933972,124.91,124.87,7.54]
[1743470924346,26.939772,124.91,124.87,7.54]
[1743470924650,6.57483202,124.93,124.87,7.54]
[1743470924853,0.14216157,124.92,124.87,7.54]
[1743470925960,0.14216157,124.92,124.87,15.548]
[1743470927358,26.79691043,124.92,124.87,7.54]
[1743470927560,8.14726157,124.92,124.87,7.54]
[1743470927942,0.14216157,124.91,124.87,7.54]
[1743470928144,0.14216157,124.91,124.85,28.0095]
[1743470928348,0.14216157,124.91,124.86,7.54]
[1743470929467,0.14216157,124.89,124.86,7.54]
[1743470931177,18.933972,124.89,124.86,7.54]
[1743470931549,8.0076,124.88,124.85,7.52]
[1743470932173,0.14216157,124.87,124.85,7.52]
[1743470932367,0.14216157,124.87,124.83,231.06]
[1743470932582,0.14216157,124.87,124.84,7.52]
[1743470933077,8.0064,124.9,124.84,7.52]
[1743470933254,0.14216157,124.89,124.84,7.52]
[1743470933671,0.14216157,124.89,124.85,8.0096]
[1743470934261,0.14216157,124.89,124.84,15.5299]
[1743470934450,26.79881043,124.89,124.84,7.52]
[1743470934649,0.14216157,124.88,124.84,7.52]
[1743470935263,0.14216157,124.88,124.84,15.5301]
[1743470939571,18.79181043,124.9,124.84,15.5301]
[1743470939773,0.14216157,124.89,124.84,35.5557]
[1743470942087,0.14216157,124.89,124.84,15.5301]
[1743470943280,8.14926157,124.89,124.84,7.52]
[1743470943589,0.14216157,124.87,124.8,15.5325]
[1743470943879,18.933972,124.85,124.77,0.063]